fUST/lending_fUST_20250730
["ID","MTS","AMOUNT","RATE_DAILY","PERIOD"]
[375978004,1753807841465,-460.0,0.00019058,2]
[375978005,1753807841474,-460.0,0.00019058,2]
[375978006,1753807841485,-460.0,0.00019058,2]
[375978007,1753807841494,-460.0,0.00019058,2]
[375978008,1753807841504,-460.0,0.00019058,2]
[375978009,1753807841513,-460.0,0.00019058,2]
[375978010,1753807841523,-460.0,0.00019058,2]
[375978011,1753807841532,-430.17380187,0.00019058,2]
[375978012,1753807841542,-176.18213583,0.00019058,2]
[375978013,1753807841552,-460.0,0.00019058,2]
[375978014,1753807841562,-460.0,0.00019058,2]
[375978015,1753807841571,-460.0,0.00019058,2]
[375978016,1753807841581,-187.03415317,0.00019058,2]
[375978017,1753807841591,-396.30066517,0.00019058,2]
[375978018,1753807841600,-406.4475806,0.00019058,2]
[375978019,1753807841610,-756.37,0.00019058,2]
[375978020,1753807841620,-516.73,0.00019058,2]
[375978021,1753807841629,-460.0,0.00019058,2]
[375978022,1753807841639,-460.0,0.00019058,2]
[375978023,1753807841649,-585.51,0.00019058,2]
[375978024,1753807841658,-460.0,0.00019058,2]
[375978025,1753807841668,-595.87,0.00019058,2]
[375978026,1753807841677,-1867.35,0.00019058,2]
[375978027,1753807841687,-460.0,0.00019058,2]
[375978028,1753807841696,-460.0,0.00019059,2]
[375978029,1753807841705,-460.0,0.00019059,2]
[375978030,1753807841714,-460.0,0.00019059,2]
[375978031,1753807841725,-460.0,0.00019059,2]
[375978032,1753807841737,-477.1937873,0.00019059,2]
[375978033,1753807841747,-460.0,0.00019059,2]
[375978034,1753807841756,-460.0,0.00019059,2]
[375978036,1753807841765,-460.0,0.00019059,2]
[375978038,1753807841775,-460.0,0.00019059,2]
[375978040,1753807841785,-460.0,0.00019059,2]
[375978042,1753807841794,-460.0,0.00019059,2]
[375978044,1753807841803,-460.0,0.00019059,2]
[375978046,1753807841813,-595.43,0.00019059,2]
[375978048,1753807841822,-667.75,0.00019059,2]
[375978050,1753807841832,-460.0,0.00019059,2]
[375978052,1753807841841,-460.0,0.00019059,2]
[375978054,1753807841851,-460.0,0.00019059,2]
[375978055,1753807841861,-526.31,0.00019059,2]
[375978057,1753807841870,-460.0,0.00019059,2]
[375978059,1753807841879,-460.0,0.00019059,2]
[375978061,1753807841889,-460.0,0.00019059,2]
[375978063,1753807841899,-460.0,0.00019059,2]
[375978065,1753807841908,-460.0,0.00019059,2]
[375978067,1753807841918,-470.13360577,0.00019059,2]
[375978069,1753807841927,-460.0,0.00019059,2]
[375978071,1753807841937,-460.0,0.00019059,2]
[375978073,1753807841948,-460.0,0.00019059,2]
[375978075,1753807841957,-460.0,0.00019059,2]
[375978077,1753807841966,-460.0,0.00019059,2]
[375978079,1753807841976,-739.29,0.00019059,2]
[375978081,1753807841989,-460.0,0.00019059,2]
[375978083,1753807841999,-460.0,0.00019059,2]
[375978084,1753807842008,-620.28,0.00019059,2]
[375978086,1753807842018,-460.0,0.00019059,2]
[375978088,1753807842027,-460.0,0.00019059,2]
[375978090,1753807842037,-222.83713547,0.00019059,2]
[375978092,1753807842047,-684.72,0.00019059,2]
[375978094,1753807842057,-460.0,0.00019059,2]
[375978097,1753807842067,-460.0,0.00019059,2]
[375978099,1753807842077,-928.03,0.00019059,2]
[375978100,1753807842086,-460.0,0.00019059,2]
[375978102,1753807842096,-460.0,0.00019059,2]
[375978105,1753807842106,-460.0,0.00019059,2]
[375978107,1753807842115,-635.4,0.00019059,2]
[375978109,1753807842125,-460.0,0.00019059,2]
[375978110,1753807842134,-404.63081435,0.00019059,2]
[375978112,1753807842143,-460.0,0.00019059,2]
[375978114,1753807842152,-460.0,0.00019059,2]
[375978116,1753807842162,-460.0,0.00019059,2]
[375978118,1753807842171,-2645.16,0.00019059,2]
[375978121,1753807842181,-1559.34,0.00019059,2]
[375978123,1753807842191,-460.0,0.00019059,2]
[375978125,1753807842200,-466.43289496,0.00019059,2]
[375978127,1753807842210,-460.0,0.00019059,2]
[375978129,1753807842219,-2524.0,0.0001906,2]
[375978131,1753807842228,-460.0,0.0001906,2]
[375978132,1753807842239,-2035.27,0.0001906,2]
[375978134,1753807842249,-603.61216703,0.0001906,2]
[375978136,1753807842258,-460.0,0.0001906,2]
[375978138,1753807842267,-460.0,0.0001906,2]
[375978140,1753807842276,-460.0,0.0001906,2]
[375978142,1753807842286,-696.22,0.0001906,2]
[375978145,1753807842298,-460.0,0.0001906,2]
[375978147,1753807842307,-460.0,0.0001906,2]
[375978148,1753807842316,-460.0,0.0001906,2]
[375978151,1753807842326,-460.0,0.0001906,2]
[375978153,1753807842336,-7088.72,0.0001906,2]
[375978155,1753807842345,-460.0,0.00019068,2]
[375978157,1753807842355,-460.0,0.00019068,2]
[375978159,1753807842364,-460.0,0.00019068,2]
[375978161,1753807842374,-379.917327,0.00019068,2]
[375978163,1753807842383,-460.0,0.00019068,2]
[375978165,1753807842392,-460.0,0.00019068,2]
[375978167,1753807842401,-460.0,0.00019069,2]
[375978169,1753807842410,-460.0,0.00019069,2]
[375978171,1753807842419,-460.0,0.00019069,2]
[375978172,1753807842429,-460.0,0.00019069,2]
[375978174,1753807842439,-460.0,0.00019069,2]
[375978177,1753807842448,-460.0,0.00019069,2]
[375978179,1753807842458,-460.0,0.00019069,2]
[375978180,1753807842468,-1910.62,0.00019069,2]
[375978183,1753807842478,-460.0,0.00019069,2]
[375978185,1753807842490,-460.0,0.00019069,2]
[375978187,1753807842499,-151.0,0.0001907,2]
[375978191,1753807842508,-460.0,0.0001907,2]
[375978193,1753807842518,-1479.1,0.0001907,2]
[375978197,1753807842527,-1785.12,0.00019071,2]
[375978198,1753807842536,-181.91150104,0.00019071,2]
[375978200,1753807842546,-460.0,0.00019071,2]
[375978202,1753807842555,-2987.64,0.00019071,2]
[375978204,1753807842565,-2558.99,0.00019071,2]
[375978206,1753807842574,-585.67,0.00019071,2]
[375978209,1753807842583,-460.0,0.00019071,2]
[375978211,1753807842593,-2659.24,0.00019071,2]
[375978213,1753807842602,-256.81509,0.00019072,2]
[375978215,1753807842611,-151.0,0.00019072,2]
[375978217,1753807842620,-230.68623,0.00019072,2]
[375978219,1753807842629,-230.68623,0.00019072,2]
[375978221,1753807842639,-500.0,0.00019073,2]
[375978223,1753807842649,-500.0,0.00019073,2]
[375978225,1753807842658,-500.0,0.00019073,2]
[375978227,1753807842668,-229.95221134,0.00019073,2]
[375978229,1753807842678,-500.0,0.00019073,2]
[375978231,1753807842687,-500.0,0.00019073,2]
[375978233,1753807842696,-500.0,0.00019073,2]
[375978235,1753807842705,-216.988626,0.00019073,2]
[375978238,1753807842714,-216.988626,0.00019073,2]
[375978240,1753807842726,-151.0,0.00019073,2]
[375978243,1753807842738,-151.0,0.00019073,2]
[375978245,1753807842747,-151.0,0.00019073,2]
[375978247,1753807842756,-151.0,0.00019073,2]
[375978249,1753807842766,-209.4073676,0.000191,2]
[375978250,1753807842775,-160.1053548,0.000191,2]
[375978251,1753807842784,-160.1053548,0.000191,2]
[375978252,1753807842794,-577.9763186,0.000191,2]
[375978253,1753807842804,-154.297647,0.00019102,2]
[375978254,1753807842813,-319.987641,0.00019102,2]
[375978255,1753807842823,-319.987641,0.00019102,2]
[375978256,1753807842832,-151.968557,0.00019102,2]
[375978257,1753807842842,-169.030691,0.00019103,2]
[375978258,1753807842851,-153.468414,0.00019103,2]
[375978259,1753807842860,-151.0,0.00019103,2]
[375978260,1753807842869,-281.64338,0.00019103,2]
[375978261,1753807842878,-329.4149928,0.00019103,2]
[375978262,1753807842888,-1317.65997119,0.00019103,2]
[375978263,1753807842898,-2964.73493519,0.00019103,2]
[375978264,1753807842907,-5270.63988478,0.00019103,2]
[375978265,1753807842916,-8227.13944515,0.00019103,2]
[375978266,1753807842925,-430.05683361,0.00019103,2]
[375978267,1753807842934,-450.32291224,0.00019103,2]
[375978268,1753807842943,-1801.29164895,0.00019103,2]
[375978269,1753807842953,-4052.90621015,0.00019103,2]
[375978271,1753807842962,-7205.16659582,0.00019103,2]
[375978273,1753807842972,-151.0,0.00019105,2]
[375978275,1753807842982,-151.0,0.00019105,2]
[375978277,1753807842993,-151.0,0.00019105,2]
[375978279,1753807843002,-151.0,0.00019105,2]
[375978281,1753807843011,-151.0,0.00019105,2]
[375978283,1753807843020,-151.0,0.00019105,2]
[375978285,1753807843030,-159.859046,0.00019123,2]
[375978287,1753807843040,-160.0,0.00019139,2]
[375978289,1753807843049,-160.0,0.00019139,2]
[375978291,1753807843058,-160.0,0.00019139,2]
[375978293,1753807843068,-160.0,0.00019139,2]
[375978295,1753807843078,-231.39372452,0.00019139,2]
[375978297,1753807843087,-160.0,0.00019139,2]
[375978299,1753807843096,-312.16666667,0.00019139,2]
[375978301,1753807843106,-841.06558547,0.00019139,2]
[375978303,1753807843115,-526.67226028,0.00019139,2]
[375978305,1753807843125,-160.0,0.00019139,2]
[375978307,1753807843134,-460.5085953,0.00019142,2]
[375978309,1753807843143,-216.1031716,0.00019142,2]
[375978311,1753807843153,-160.0,0.00019142,2]
[375978313,1753807843163,-12637.12721421,0.00019142,2]
[375978315,1753807843173,-160.0,0.00019142,2]
[375978317,1753807843183,-214.91980558,0.00019142,2]
[375978319,1753807843192,-160.0,0.00019142,2]
[375978321,1753807843202,-439.25,0.00019157,2]
[375978323,1753807843211,-200.0,0.00019158,15]
[375978325,1753807843221,-200.0,0.00019158,15]
[375978327,1753807843231,-200.0,0.00019158,15]
[375978329,1753807843242,-200.0,0.00019158,15]
[375978331,1753807843252,-2231.69749388,0.00019176,2]
[375978333,1753807843261,-1085.93977996,0.00019177,2]
[375978335,1753807843271,-254.584463,0.00019178,2]
[375978337,1753807843281,-254.584463,0.00019178,2]
[375978339,1753807843290,-151.0,0.00019178,2]
[375978341,1753807843302,-151.674928,0.00019178,2]
[375978343,1753807843311,-151.0,0.00019178,2]
[375978345,1753807843320,-151.0,0.00019178,2]
[375978347,1753807843330,-151.0,0.00019178,2]
[375978349,1753807843341,-536.121451,0.00019178,2]
[375978351,1753807843350,-5000.0,0.00019178,2]
[375978353,1753807843359,-5000.0,0.00019178,2]
[375978355,1753807843371,-5000.0,0.00019178,2]
[375978357,1753807843380,-5000.0,0.00019178,2]
[375978359,1753807843389,-3957.89146604,0.00019178,2]
[375978361,1753807843399,-666.0,0.00019178,2]
[375978363,1753807843409,-4025.8235788,0.00019178,2]
[375978365,1753807843418,-430.1392862,0.000192,2]
[375978367,1753807843427,-430.1392862,0.000192,2]
[375978369,1753807843437,-178.4386705,0.000192,2]
[375978371,1753807843446,-430.1392862,0.000192,2]
[375978373,1753807843455,-178.4386705,0.000192,2]
[375978375,1753807843465,-430.1392862,0.000192,2]
[375978377,1753807843474,-178.4386705,0.000192,2]
[375978379,1753807843485,-326.5852553,0.000192,2]
[375978381,1753807843495,-178.4386705,0.000192,2]
[375978383,1753807843503,-178.4386705,0.000192,2]
[375978385,1753807843512,-178.4386705,0.000192,2]
[375978387,1753807843522,-178.4386705,0.000192,2]
[375978389,1753807843531,-178.4386705,0.000192,2]
[375978391,1753807843540,-178.4386705,0.000192,2]
[375978393,1753807843549,-178.4386705,0.000192,2]
[375978395,1753807843559,-356.0509046,0.000192,2]
[375978397,1753807843567,-3293.0,0.00019224,2]
[375978399,1753807843577,-168.0,0.00019255,2]
[375978401,1753807843587,-581.65789442,0.00019256,2]
[375978403,1753807843597,-168.0,0.00019284,2]
[375978405,1753807843606,-151.0,0.00019302,2]
[375978407,1753807843615,-482.805732,0.00019302,2]
[375978408,1753807843624,-482.805732,0.00019302,2]
[375978410,1753807843633,-151.0,0.00019302,2]
[375978411,1753807843643,-5888.0,0.00019302,2]
[375978413,1753807843653,-168.0,0.0001931,2]
[375978415,1753807843662,-2231.69749388,0.00019314,2]
[375978418,1753807843672,-216.988626,0.00019329,2]
[375978419,1753807843681,-216.988626,0.00019329,2]
[375978421,1753807843691,-151.0,0.00019329,2]
[375978423,1753807843700,-151.0,0.00019329,2]
[375978425,1753807843709,-152.260752,0.00019329,2]
[375978427,1753807843718,-230.68623,0.00019329,2]
[375978429,1753807843727,-230.68623,0.00019329,2]
[375978431,1753807843738,-151.0,0.00019329,2]
[375978433,1753807843747,-500.0,0.00019329,2]
[375978435,1753807843757,-454.216416,0.00019329,2]
[375978437,1753807843766,-454.216416,0.00019329,2]
[375978439,1753807843775,-500.0,0.00019329,2]
[375978441,1753807843785,-182.92149,0.00019329,2]
[375978443,1753807843794,-182.92149,0.00019329,2]
[375978445,1753807843804,-151.386588,0.00019329,2]
[375978447,1753807843813,-151.0,0.00019329,2]
[375978449,1753807843822,-30582.26030167,0.00019329,2]
[375978451,1753807843831,-264.5145931,0.00019331,2]
[375978453,1753807843841,-460.0,0.00019331,2]
[375978455,1753807843850,-460.0,0.00019331,2]
[375978457,1753807843859,-460.0,0.00019331,2]
[375978459,1753807843869,-460.0,0.00019331,2]
[375978461,1753807843879,-460.0,0.00019331,2]
[375978463,1753807843889,-460.0,0.00019331,2]
[375978465,1753807843899,-460.0,0.00019331,2]
[375978467,1753807843908,-460.0,0.00019331,2]
[375978469,1753807843918,-491.69,0.00019331,2]
[375978471,1753807843928,-811.66,0.00019331,2]
[375978473,1753807843937,-460.0,0.00019331,2]
[375978475,1753807843947,-3307.02,0.00019331,2]
[375978477,1753807843956,-460.0,0.00019331,2]
[375978479,1753807843965,-460.0,0.00019331,2]
[375978481,1753807843975,-548.32,0.00019331,2]
[375978483,1753807843988,-460.0,0.00019331,2]
[375978485,1753807843998,-544.18,0.00019331,2]
[375978487,1753807844007,-579.34,0.00019331,2]
[375978489,1753807844016,-460.0,0.00019331,2]
[375978491,1753807844026,-507.41,0.00019331,2]
[375978493,1753807844036,-1150.02,0.00019331,2]
[375978496,1753807844045,-460.0,0.00019331,2]
[375978497,1753807844055,-460.0,0.00019331,2]
[375978499,1753807844064,-2693.06,0.00019331,2]
[375978501,1753807844073,-460.0,0.00019331,2]
[375978503,1753807844084,-460.0,0.00019331,2]
[375978505,1753807844094,-473.88,0.00019331,2]
[375978508,1753807844103,-228.53735661,0.00019331,2]
[375978509,1753807844112,-460.0,0.00019331,2]
[375978512,1753807844121,-460.0,0.00019331,2]
[375978514,1753807844131,-5209.05,0.00019331,2]
[375978516,1753807844140,-1832.82,0.00019331,2]
[375978518,1753807844150,-460.0,0.00019331,2]
[375978519,1753807844160,-608.37,0.00019331,2]
[375978522,1753807844170,-460.0,0.00019331,2]
[375978523,1753807844179,-460.0,0.00019331,2]
[375978525,1753807844188,-460.0,0.00019331,2]
[375978527,1753807844198,-460.0,0.00019331,2]
[375978529,1753807844207,-460.0,0.00019331,2]
[375978531,1753807844216,-2060.05,0.00019331,2]
[375978533,1753807844225,-566.85,0.00019331,2]
[375978535,1753807844237,-475.64,0.00019331,2]
[375978537,1753807844246,-460.0,0.00019331,2]
[375978539,1753807844255,-801.11,0.00019331,2]
[375978541,1753807844264,-460.0,0.00019331,2]
[375978543,1753807844273,-460.0,0.00019332,2]
[375978545,1753807844283,-460.0,0.00019332,2]
[375978547,1753807844292,-460.0,0.00019332,2]
[375978549,1753807844304,-465.1891006,0.00019332,2]
[375978552,1753807844313,-460.0,0.00019332,2]
[375978553,1753807844322,-460.0,0.00019332,2]
[375978555,1753807844331,-756.37,0.00019332,2]
[375978558,1753807844342,-516.73,0.00019332,2]
[375978560,1753807844351,-460.0,0.00019332,2]
[375978561,1753807844360,-460.0,0.00019332,2]
[375978563,1753807844370,-585.51,0.00019332,2]
[375978565,1753807844379,-460.0,0.00019332,2]
[375978567,1753807844390,-595.87,0.00019332,2]
[375978569,1753807844400,-1867.35,0.00019332,2]
[375978572,1753807844409,-460.0,0.00019332,2]
[375978574,1753807844419,-460.0,0.00019333,2]
[375978576,1753807844428,-460.0,0.00019333,2]
[375978578,1753807844437,-460.0,0.00019333,2]
[375978579,1753807844447,-460.0,0.00019333,2]
[375978582,1753807844457,-460.0,0.00019333,2]
[375978583,1753807844466,-595.43,0.00019333,2]
[375978585,1753807844475,-667.75,0.00019333,2]
[375978587,1753807844484,-460.0,0.00019333,2]
[375978589,1753807844495,-460.0,0.00019333,2]
[375978591,1753807844504,-460.0,0.00019333,2]
[375978593,1753807844513,-460.0,0.00019333,2]
[375978595,1753807844522,-460.0,0.00019333,2]
[375978597,1753807844531,-460.0,0.00019333,2]
[375978599,1753807844541,-460.0,0.00019333,2]
[375978601,1753807844550,-460.0,0.00019333,2]
[375978603,1753807844560,-460.0,0.00019333,2]
[375978605,1753807844569,-460.0,0.00019333,2]
[375978607,1753807844578,-479.94,0.00019333,2]
[375978609,1753807844588,-739.29,0.00019333,2]
[375978611,1753807844597,-460.0,0.00019333,2]
[375978613,1753807844607,-620.28,0.00019333,2]
[375978615,1753807844616,-460.0,0.00019333,2]
[375978617,1753807844625,-460.0,0.00019333,2]
[375978619,1753807844635,-684.72,0.00019333,2]
[375978621,1753807844643,-460.0,0.00019333,2]
[375978623,1753807844653,-928.03,0.00019333,2]
[375978625,1753807844662,-460.0,0.00019333,2]
[375978627,1753807844671,-460.0,0.00019333,2]
[375978629,1753807844680,-635.4,0.00019333,2]
[375978631,1753807844690,-151.0,0.00019333,2]
[375978633,1753807844699,-460.0,0.00019333,2]
[375978635,1753807844708,-2645.16,0.00019333,2]
[375978637,1753807844718,-151.0,0.00019333,2]
[375978639,1753807844727,-1559.34,0.00019333,2]
[375978641,1753807844738,-460.0,0.00019333,2]
[375978643,1753807844748,-460.0,0.00019333,2]
[375978645,1753807844757,-2524.0,0.00019334,2]
[375978647,1753807844766,-460.0,0.00019334,2]
[375978649,1753807844775,-2035.27,0.00019334,2]
[375978651,1753807844784,-460.0,0.00019334,2]
[375978653,1753807844793,-460.0,0.00019334,2]
[375978655,1753807844803,-460.0,0.00019334,2]
[375978657,1753807844812,-696.22,0.00019334,2]
[375978659,1753807844821,-460.0,0.00019334,2]
[375978661,1753807844830,-460.0,0.00019334,2]
[375978663,1753807844839,-460.0,0.00019334,2]
[375978665,1753807844848,-7088.72,0.00019334,2]
[375978667,1753807844857,-151.0,0.00019334,2]
[375978669,1753807844866,-151.0,0.00019335,2]
[375978671,1753807844875,-460.0,0.00019342,2]
[375978673,1753807844885,-460.0,0.00019342,2]
[375978675,1753807844894,-460.0,0.00019343,2]
[375978677,1753807844903,-460.0,0.00019343,2]
[375978679,1753807844912,-1910.62,0.00019343,2]
[375978681,1753807844921,-460.0,0.00019343,2]
[375978682,1753807844930,-151.0,0.00019343,2]
[375978684,1753807844939,-482.805732,0.00019343,2]
[375978686,1753807844948,-482.805732,0.00019343,2]
[375978688,1753807844958,-460.0,0.00019343,2]
[375978690,1753807844967,-151.0,0.00019344,2]
[375978693,1753807844977,-151.0,0.00019344,2]
[375978694,1753807844988,-460.0,0.00019344,2]
[375978696,1753807844997,-1479.1,0.00019344,2]
[375978699,1753807845007,-254.584463,0.00019345,2]
[375978701,1753807845016,-254.584463,0.00019345,2]
[375978703,1753807845025,-151.0,0.00019345,2]
[375978704,1753807845035,-1785.12,0.00019345,2]
[375978705,1753807845044,-2987.64,0.00019345,2]
[375978706,1753807845053,-2558.99,0.00019345,2]
[375978710,1753807845209,-585.67,0.00019345,2]
[375978712,1753807845219,-460.0,0.00019345,2]
[375978714,1753807845228,-2659.24,0.00019345,2]
[375978716,1753807845238,-152.279696,0.00019345,2]
[375978718,1753807845247,-169.030691,0.00019346,2]
[375978720,1753807845256,-319.987641,0.00019346,2]
[375978722,1753807845265,-319.987641,0.00019346,2]
[375978724,1753807845274,-168.0,0.00019352,2]
[375978726,1753807845285,-500.0,0.00019373,2]
[375978728,1753807845295,-500.0,0.00019373,2]
[375978730,1753807845305,-500.0,0.00019373,2]
[375978731,1753807845314,-151.0,0.00019373,2]
[375978734,1753807845323,-151.0,0.00019373,2]
[375978736,1753807845333,-151.0,0.00019373,2]
[375978737,1753807845342,-177.038864,0.00019373,2]
[375978740,1753807845352,-177.038864,0.00019373,2]
[375978741,1753807845361,-151.0,0.00019376,2]
[375978743,1753807845373,-151.0,0.00019376,2]
[375978745,1753807845383,-151.0,0.00019376,2]
[375978748,1753807845393,-151.0,0.00019376,2]
[375978750,1753807845401,-151.0,0.00019376,2]
[375978752,1753807845410,-151.0,0.00019376,2]
[375978754,1753807845419,-151.0,0.00019376,2]
[375978756,1753807845429,-151.0,0.00019376,2]
[375978758,1753807845438,-151.0,0.00019376,2]
[375978761,1753807845447,-151.0,0.00019376,2]
[375978763,1753807845457,-319.987641,0.00019376,2]
[375978765,1753807845467,-319.987641,0.00019376,2]
[375978768,1753807845476,-151.0,0.00019376,2]
[375978770,1753807845485,-151.0,0.00019377,2]
[375978771,1753807845495,-152.497948,0.00019377,2]
[375978773,1753807845505,-169.030691,0.00019377,2]
[375978775,1753807845514,-216.988626,0.00019377,2]
[375978777,1753807845523,-216.988626,0.00019377,2]
[375978779,1753807845532,-151.0,0.00019377,2]
[375978781,1753807845541,-151.0,0.00019377,2]
[375978784,1753807845550,-151.0,0.00019377,2]
[375978786,1753807845559,-151.0,0.00019377,2]
[375978788,1753807845568,-151.0,0.00019377,2]
[375978791,1753807845577,-230.68623,0.00019377,2]
[375978793,1753807845586,-230.68623,0.00019377,2]
[375978795,1753807845595,-151.0,0.00019377,2]
[375978797,1753807845604,-151.0,0.00019378,2]
[375978799,1753807845614,-151.0,0.00019379,2]
[375978801,1753807845623,-190.029278,0.00019379,2]
[375978803,1753807845632,-151.0,0.00019379,2]
[375978805,1753807845641,-153.363126,0.00019379,2]
[375978807,1753807845651,-454.216416,0.00019379,2]
[375978809,1753807845660,-454.216416,0.00019379,2]
[375978811,1753807845669,-182.92149,0.00019379,2]
[375978813,1753807845679,-182.92149,0.00019379,2]
[375978815,1753807845688,-254.584463,0.00019386,2]
[375978817,1753807845698,-254.584463,0.00019386,2]
[375978819,1753807845708,-3293.0,0.00019406,2]
[375978821,1753807845717,-151.0,0.00019409,2]
[375978823,1753807845727,-151.0,0.00019409,2]
[375978825,1753807845740,-151.0,0.00019409,2]
[375978827,1753807845750,-151.0,0.00019409,2]
[375978829,1753807845759,-151.0,0.00019409,2]
[375978831,1753807845768,-151.0,0.00019414,2]
[375978833,1753807845778,-151.0,0.00019414,2]
[375978835,1753807845787,-151.0,0.00019414,2]
[375978838,1753807845797,-151.0,0.00019414,2]
[375978840,1753807845807,-274.014233,0.00019414,2]
[375978842,1753807845816,-274.014233,0.00019414,2]
[375978844,1753807845825,-11245.51411945,0.0001944,2]
[375978846,1753807845835,-2231.69749388,0.00019452,2]
[375978848,1753807845844,-1755.0,0.00019465,2]
[375978849,1753807845853,-1755.0,0.00019465,2]
[375978851,1753807845862,-168.0,0.00019477,2]
[375978853,1753807845871,-151.0,0.00019537,2]
[375978855,1753807845880,-727.77082838,0.00019552,2]
[375978857,1753807845890,-5888.0,0.00019581,2]
[375978859,1753807845899,-2231.69749388,0.0001959,2]
[375978861,1753807845908,-151.0,0.0001959,2]
[375978863,1753807845918,-460.0,0.00019605,2]
[375978865,1753807845928,-460.0,0.00019605,2]
[375978867,1753807845937,-460.0,0.00019605,2]
[375978869,1753807845946,-460.0,0.00019605,2]
[375978871,1753807845955,-460.0,0.00019605,2]
[375978873,1753807845965,-460.0,0.00019605,2]
[375978876,1753807845975,-491.69,0.00019605,2]
[375978877,1753807845984,-811.66,0.00019605,2]
[375978879,1753807845995,-460.0,0.00019605,2]
[375978881,1753807846005,-3307.02,0.00019605,2]
[375978883,1753807846014,-348.32906472,0.00019605,2]
[375978900,1753807846182,-111.67093528,0.00019605,2]
[375978901,1753807846191,-553.21,0.00019605,2]
[375978903,1753807846200,-548.32,0.00019605,2]
[375978904,1753807846210,-151.0,0.00019605,2]
[375978906,1753807846220,-544.18,0.00019605,2]
[375978907,1753807846229,-579.34,0.00019605,2]
[375978909,1753807846238,-460.0,0.00019605,2]
[375978910,1753807846247,-507.41,0.00019605,2]
[375978912,1753807846257,-1150.02,0.00019605,2]
[375978913,1753807846265,-460.0,0.00019605,2]
[375978915,1753807846275,-2693.06,0.00019605,2]
[375978916,1753807846284,-460.0,0.00019605,2]
[375978918,1753807846294,-473.88,0.00019605,2]
[375978919,1753807846306,-151.0,0.00019605,2]
[375978921,1753807846316,-460.0,0.00019605,2]
[375978922,1753807846325,-466.41807707,0.00019605,2]
[375978924,1753807846334,-1832.82,0.00019605,2]
[375978925,1753807846345,-5209.05,0.00019605,2]
[375978927,1753807846354,-460.0,0.00019605,2]
[375978928,1753807846363,-608.37,0.00019605,2]
[375978930,1753807846373,-460.0,0.00019605,2]
[375978932,1753807846383,-460.0,0.00019605,2]
[375978933,1753807846392,-460.0,0.00019605,2]
[375978934,1753807846401,-460.0,0.00019605,2]
[375978936,1753807846411,-333.44440966,0.00019605,2]
[375978938,1753807846420,-2060.05,0.00019605,2]
[375978939,1753807846429,-566.85,0.00019605,2]
[375978941,1753807846439,-475.64,0.00019605,2]
[375978942,1753807846448,-460.0,0.00019605,2]
[375978944,1753807846458,-801.11,0.00019605,2]
[375978945,1753807846467,-460.0,0.00019605,2]
[375978947,1753807846476,-460.0,0.00019606,2]
[375978949,1753807846485,-460.0,0.00019606,2]
[375978950,1753807846496,-341.15063545,0.00019606,2]
[375978952,1753807846505,-460.0,0.00019606,2]
[375978953,1753807846514,-460.0,0.00019606,2]
[375978955,1753807846523,-151.0,0.00019606,2]